bitfinex/quotes_BTCUSD_20250830
["timestamp","ask_amount","ask_price","bid_price","bid_amount"]
[1756512302245,0.78008178,108480.0,108470.0,0.00564294]
[1756512302625,0.70916178,108480.0,108470.0,0.00564294]
[1756512302961,0.68148578,108480.0,108470.0,0.00564294]
[1756512303165,0.68148578,108480.0,108470.0,0.00794772]
[1756512303382,0.68148578,108480.0,108470.0,0.00706772]
[1756512303584,0.68048578,108480.0,108470.0,0.00706772]
[1756512304622,0.52436578,108480.0,108470.0,0.00706772]
[1756512304753,0.52436578,108480.0,108470.0,0.00806772]
[1756512304962,0.68048578,108480.0,108470.0,0.00806772]
[1756512305350,0.52436578,108480.0,108470.0,0.00806772]
[1756512305522,0.68044578,108480.0,108470.0,0.00806772]
[1756512305949,0.21206178,108490.0,108470.0,0.28074681]
[1756512306152,0.34042878,108490.0,108470.0,0.3218265]
[1756512306357,0.34042878,108490.0,108480.0,0.00313]
[1756512306592,0.68042878,108490.0,108480.0,0.00313]
[1756512306803,0.68042878,108490.0,108480.0,0.0051]
[1756512307200,0.68142878,108490.0,108480.0,0.0051]
[1756512307612,0.68343878,108490.0,108480.0,0.0051]
[1756512307845,0.68243878,108490.0,108480.0,0.0051]
[1756512308066,0.68343878,108490.0,108480.0,0.0051]
[1756512311273,0.52436578,108480.0,108470.0,0.00313]
[1756512311445,0.18438277,108470.0,108460.0,0.00313]
[1756512311626,0.68239277,108470.0,108460.0,0.09026632]
[1756512311848,0.68239277,108470.0,108460.0,0.09339632]
[1756512312287,0.68239277,108470.0,108460.0,0.09026632]
[1756512312468,0.68239277,108470.0,108460.0,0.09339632]
[1756512312868,0.68239277,108470.0,108460.0,0.09026632]
[1756512313862,0.68239277,108470.0,108460.0,0.09326632]
[1756512314062,0.68239277,108470.0,108460.0,0.09426632]
[1756512314464,0.68535277,108470.0,108460.0,0.004]
[1756512315888,0.68535277,108470.0,108460.0,0.003]
[1756512316579,0.52441678,108450.0,108440.0,0.09955982]
[1756512316778,0.52441678,108450.0,108440.0,0.30337992]
[1756512317742,0.52172725,108450.0,108440.0,0.30337992]
[1756512318105,0.52172725,108450.0,108440.0,0.12294614]
[1756512318846,0.55848131,108450.0,108440.0,0.12294614]
[1756512319054,0.55848131,108450.0,108440.0,0.17299595]
[1756512319890,0.55848131,108450.0,108440.0,0.17499595]
[1756512320599,0.55848131,108450.0,108440.0,0.35942973]
[1756512321412,0.55848131,108450.0,108440.0,0.17499595]
[1756512321909,0.55848131,108450.0,108440.0,0.12494614]
[1756512322112,0.52172725,108450.0,108440.0,0.30937992]
[1756512323822,0.33731047,108450.0,108440.0,0.30937992]
[1756512325402,0.33731047,108450.0,108440.0,0.33709692]
[1756512326061,0.03770686,108460.0,108450.0,0.18441678]
[1756512326192,0.56210663,108460.0,108450.0,0.48382059]
[1756512326392,0.52439977,108460.0,108450.0,0.48382059]
[1756512326834,0.34,108460.0,108450.0,0.48382059]
[1756512327231,0.34,108460.0,108450.0,0.48782059]
[1756512327435,0.52439977,108460.0,108450.0,0.30340381]
[1756512327849,0.52439977,108460.0,108450.0,0.48782059]
[1756512331900,0.34,108460.0,108450.0,0.48782059]
[1756512332352,0.2305275,108470.0,108450.0,0.51553559]
[1756512332484,0.5705275,108470.0,108460.0,0.00552499]
[1756512332721,0.5705275,108470.0,108460.0,0.09581131]
[1756512333329,0.5705275,108470.0,108460.0,0.14749537]
[1756512333755,0.5724975,108470.0,108460.0,0.14749537]
[1756512333991,0.5724975,108470.0,108460.0,0.14849537]
[1756512334227,0.5705275,108470.0,108460.0,0.14849537]
[1756512335387,0.5724975,108470.0,108460.0,0.14527537]
[1756512335618,0.5724975,108470.0,108460.0,0.09160131]
[1756512336229,0.5724975,108470.0,108460.0,0.24724131]
[1756512336429,0.5724975,108470.0,108460.0,0.24493632]
[1756512337072,0.5724975,108470.0,108460.0,0.25014632]
[1756512339268,0.56130837,108470.0,108460.0,0.43454609]
[1756512339475,0.56130837,108470.0,108460.0,0.09450632]
[1756512339680,0.56130837,108470.0,108460.0,0.25002632]
[1756512339884,0.56327837,108470.0,108460.0,0.09450632]
[1756512340087,0.56327837,108470.0,108460.0,0.24481632]
[1756512340336,0.56327837,108470.0,108460.0,0.24381632]
[1756512340727,0.56327837,108470.0,108460.0,0.09229632]
[1756512340943,0.56327837,108470.0,108460.0,0.24781632]
[1756512341891,0.56327837,108470.0,108460.0,0.25302632]
[1756512342105,0.56130837,108470.0,108460.0,0.48894762]
[1756512342394,0.56130837,108470.0,108460.0,0.49094762]
[1756512342966,0.34,108470.0,108460.0,0.49094762]
[1756512343170,0.5244134,108480.0,108470.0,0.18438277]
[1756512343384,0.5244134,108480.0,108470.0,0.27788909]
[1756512343580,0.56280157,108480.0,108470.0,0.33705128]
[1756512345505,0.56477157,108480.0,108470.0,0.33805128]
[1756512345926,0.56477157,108480.0,108470.0,0.34005128]
[1756512346360,0.56477157,108480.0,108470.0,0.36776228]
[1756512349163,0.56477157,108480.0,108470.0,0.18337951]
[1756512351086,0.56477157,108480.0,108470.0,0.18015951]
[1756512351876,0.56477157,108480.0,108470.0,0.18320951]
[1756512352870,0.56477157,108480.0,108470.0,0.15549851]
[1756512355200,0.56477157,108480.0,108470.0,0.15045851]
[1756512355538,0.56477157,108480.0,108470.0,0.15254851]
[1756512355738,0.56477157,108480.0,108470.0,0.15559851]
[1756512356407,0.56477157,108480.0,108470.0,0.31095851]
[1756512356608,0.56477157,108480.0,108470.0,0.30790851]
[1756512356837,0.56477157,108480.0,108470.0,0.30581851]
[1756512357702,0.56477157,108480.0,108470.0,0.30790851]
[1756512357908,0.56477157,108480.0,108470.0,0.31095851]
[1756512359367,0.56477157,108480.0,108470.0,0.30581851]
[1756512359542,0.56393157,108480.0,108470.0,0.30581851]
[1756512359920,0.56393157,108480.0,108470.0,0.31095851]
[1756512361306,0.56394157,108480.0,108470.0,0.31095851]
[1756512361739,0.56394157,108480.0,108470.0,0.30581851]
[1756512361916,0.56394157,108480.0,108470.0,0.30790851]
[1756512362360,0.56394157,108480.0,108470.0,0.30581851]
[1756512362562,0.56394157,108480.0,108470.0,0.30790851]
[1756512362686,0.56394157,108480.0,108470.0,0.31095851]
[1756512363316,0.56394157,108480.0,108470.0,0.30790851]
[1756512363681,0.56394157,108480.0,108470.0,0.31095851]
[1756512363878,0.56196157,108480.0,108470.0,0.31095851]
[1756512364112,0.56394157,108480.0,108470.0,0.31095851]
[1756512367638,0.33091671,108480.0,108470.0,0.31095851]
[1756512367861,0.04036817,108480.0,108470.0,0.31095851]
[1756512368105,0.22476483,108480.0,108470.0,0.31107851]
[1756512370689,0.22278483,108480.0,108470.0,0.49546128]
[1756512370884,0.22278483,108480.0,108470.0,0.31107851]
[1756512371287,0.22278483,108480.0,108470.0,0.15559851]
[1756512371506,0.22278483,108480.0,108470.0,0.31099851]
[1756512373989,0.22476483,108480.0,108470.0,0.25183632]
[1756512374600,0.22278483,108480.0,108470.0,0.25183632]
[1756512376035,0.22278483,108480.0,108470.0,0.09643632]
[1756512376255,0.22278483,108480.0,108470.0,0.25183632]
[1756512377380,0.22278483,108480.0,108470.0,0.09643632]
[1756512377543,0.22476483,108480.0,108470.0,0.25183632]
[1756512377756,0.22476483,108480.0,108470.0,0.31047076]
[1756512378363,0.56476483,108480.0,108470.0,0.14993076]
[1756512378528,0.56476483,108480.0,108470.0,0.003]
[1756512378529,0.56774483,108480.0,108470.0,0.003]
[1756512378973,0.59545983,108480.0,108470.0,0.003]
[1756512384896,0.75081983,108480.0,108470.0,0.003]
[1756512387542,0.59545983,108480.0,108470.0,0.003]
[1756512387748,0.75081983,108480.0,108470.0,0.003]
[1756512387942,0.5657116,108480.0,108470.0,0.003]
[1756512389047,0.60373552,108480.0,108470.0,0.003]
[1756512391707,0.60075552,108480.0,108470.0,0.003]
[1756512393615,0.59877552,108480.0,108470.0,0.00829]
[1756512394743,0.60081552,108480.0,108470.0,0.00829]
[1756512398802,0.44545552,108480.0,108470.0,0.00829]
[1756512399016,0.60081552,108480.0,108470.0,0.00829]
[1756512401297,0.44545552,108480.0,108470.0,0.00829]
[1756512401636,0.59877552,108480.0,108470.0,0.00829]
[1756512402147,0.60081552,108480.0,108470.0,0.00829]
[1756512405549,0.60081552,108480.0,108470.0,0.00515]
[1756512405770,0.60081552,108480.0,108470.0,0.003]
[1756512407461,0.60400552,108480.0,108470.0,0.003]
[1756512413033,0.60081552,108480.0,108470.0,0.003]
[1756512413623,0.60387552,108480.0,108470.0,0.003]
[1756512416251,0.60081552,108480.0,108470.0,0.003]
[1756512418725,0.60081552,108480.0,108470.0,0.00516]
[1756512420369,0.44341552,108480.0,108470.0,0.00838]
[1756512420547,0.59877552,108480.0,108470.0,0.01068478]
[1756512420737,0.57106052,108480.0,108470.0,0.03019322]
[1756512422604,0.41570052,108480.0,108470.0,0.03019322]
[1756512422785,0.41570052,108480.0,108470.0,0.30287231]
[1756512422983,0.57102052,108480.0,108470.0,0.30056753]
[1756512423215,0.57102052,108480.0,108470.0,0.11618476]
[1756512423407,0.41570052,108480.0,108470.0,0.11848954]
[1756512426012,0.41770052,108480.0,108470.0,0.11848954]
[1756512427099,0.41770052,108480.0,108470.0,0.11080476]
[1756512427959,0.57302052,108480.0,108470.0,0.11080476]
[1756512428367,0.57302052,108480.0,108470.0,0.11296476]
[1756512428575,0.57302052,108480.0,108470.0,0.11618476]
[1756512428742,0.57302052,108480.0,108470.0,0.11080476]
[1756512428953,0.57302052,108480.0,108470.0,0.09129632]
[1756512430778,0.19534392,108480.0,108470.0,0.09129632]
[1756512431000,0.37974058,108480.0,108470.0,0.09129632]
[1756512433006,0.37974058,108480.0,108470.0,0.09345632]
[1756512433489,0.37974058,108480.0,108470.0,0.09667632]
[1756512433709,0.37974058,108480.0,108470.0,0.14308705]
[1756512434164,0.37974058,108480.0,108470.0,0.09667632]
[1756512434444,0.37974058,108480.0,108470.0,0.09129632]
[1756512434993,0.37974058,108480.0,108470.0,0.09667632]
[1756512435762,0.71974058,108480.0,108470.0,0.09345632]
[1756512435962,0.71974058,108480.0,108470.0,0.09129632]
[1756512436297,0.71974058,108480.0,108470.0,0.09345632]
[1756512436899,0.71974058,108480.0,108470.0,0.09667632]
[1756512438201,0.56442058,108480.0,108470.0,0.09667632]
[1756512438439,0.56442058,108480.0,108470.0,0.3297746]
[1756512438440,0.03802392,108480.0,108470.0,0.3297746]
[1756512438646,0.027713,108490.0,108480.0,0.18436578]
[1756512438866,0.19357669,108500.0,108480.0,0.33964578]
[1756512439083,0.56602451,108500.0,108490.0,0.00311]
[1756512439293,0.56602451,108500.0,108490.0,0.00508]
[1756512439294,0.22602451,108500.0,108490.0,0.00508]
[1756512439524,0.56602451,108500.0,108490.0,0.28002945]
[1756512439737,0.22602451,108500.0,108490.0,0.15534384]
[1756512439934,0.56602451,108500.0,108490.0,0.15764819]
[1756512440344,0.56602451,108500.0,108490.0,0.18535619]
[1756512440478,0.56602451,108500.0,108490.0,0.18305184]
[1756512441095,0.56602451,108500.0,108490.0,0.18505184]
[1756512441725,0.37244782,108500.0,108490.0,0.36940062]
[1756512441896,0.34,108510.0,108500.0,0.18432844]
[1756512442264,0.5243148,108510.0,108500.0,0.43298811]
[1756512442474,0.55565724,108510.0,108500.0,0.43298811]
[1756512443099,0.55565724,108510.0,108500.0,0.46069211]
[1756512444506,0.55565724,108510.0,108500.0,0.12108032]
[1756512444807,0.55779724,108510.0,108500.0,0.12108032]
[1756512445004,0.55779724,108510.0,108500.0,0.27636032]
[1756512445217,0.55779724,108510.0,108500.0,0.27736032]
[1756512446195,0.55779724,108510.0,108500.0,0.12308032]
[1756512446396,0.55779724,108510.0,108500.0,0.27836032]
[1756512446607,0.55779724,108510.0,108500.0,0.3123931]
[1756512446805,0.55565724,108510.0,108500.0,0.3123931]
[1756512447004,0.21779724,108510.0,108500.0,0.1571131]
[1756512447233,0.37607724,108510.0,108500.0,0.029704]
[1756512447438,0.37607724,108510.0,108500.0,0.002]
[1756512447643,0.40378424,108510.0,108500.0,0.002]
[1756512448031,0.40378424,108510.0,108500.0,0.001]
[1756512448448,0.42672565,108510.0,108500.0,0.001]
[1756512448885,0.76672565,108510.0,108500.0,0.001]
[1756512449619,0.18436578,108480.0,108470.0,0.23261479]
[1756512449891,0.18436578,108480.0,108470.0,0.32288111]
[1756512450955,0.18436578,108480.0,108470.0,0.32588111]
[1756512451300,0.18436578,108480.0,108470.0,0.32788111]
[1756512451504,0.61467615,108480.0,108470.0,0.32788111]
[1756512456884,0.18436578,108480.0,108470.0,0.32788111]
[1756512457167,0.61467615,108480.0,108470.0,0.32788111]
[1756512459900,0.61681615,108480.0,108470.0,0.32788111]
[1756512460783,0.61681615,108480.0,108470.0,0.17264111]
[1756512460996,0.61681615,108480.0,108470.0,0.32788111]
[1756512462452,0.61681615,108480.0,108470.0,0.17264111]
[1756512462661,0.61681615,108480.0,108470.0,0.32788111]
[1756512462871,0.61681615,108480.0,108470.0,0.12312038]
[1756512463077,0.61681615,108480.0,108470.0,0.27836038]
[1756512463282,0.61681615,108480.0,108470.0,0.25064938]
[1756512463690,0.61681615,108480.0,108470.0,0.25375938]
[1756512464978,0.61681615,108480.0,108470.0,0.25064938]
[1756512465188,0.95681615,108480.0,108470.0,0.09343938]
[1756512465394,1.39012652,108480.0,108470.0,0.00514306]
[1756512465610,1.41784152,108480.0,108470.0,0.00514306]
[1756512466169,1.41784152,108480.0,108470.0,0.00214306]
[1756512466570,1.57308152,108480.0,108470.0,0.00214306]
[1756512467024,1.57308152,108480.0,108470.0,0.00014306]
[1756512467226,0.027715,108480.0,108470.0,0.23951938]
[1756512467431,0.18436578,108480.0,108470.0,0.37738236]
[1756512467639,0.18436578,108480.0,108470.0,0.37838236]
[1756512467786,0.61465915,108490.0,108470.0,0.59047413]
[1756512468015,0.61465915,108490.0,108480.0,0.09140632]
[1756512468208,0.61679915,108490.0,108480.0,0.08829632]
[1756512468609,0.61679915,108490.0,108480.0,0.09026632]
[1756512469153,0.18648878,108490.0,108480.0,0.09026632]
[1756512469360,0.61679915,108490.0,108480.0,0.09026632]
[1756512470147,0.61679915,108490.0,108480.0,0.09338632]
[1756512470323,0.18436578,108480.0,108470.0,0.07414306]
[1756512470530,0.61467615,108480.0,108470.0,0.53068725]
[1756512470766,0.61467615,108480.0,108470.0,0.53284725]
[1756512471137,0.61467615,108480.0,108470.0,0.34846448]
[1756512471501,0.61467615,108480.0,108470.0,0.32083938]
[1756512472500,0.61467615,108480.0,108470.0,0.31655938]
[1756512472501,0.61672615,108480.0,108470.0,0.31655938]
[1756512473504,0.61672615,108480.0,108470.0,0.31871938]
[1756512474527,0.61672615,108480.0,108470.0,0.24783938]
[1756512475655,0.61672615,108480.0,108470.0,0.09043938]
[1756512475852,1.05004652,108480.0,108470.0,0.00214306]
[1756512476415,1.39004652,108480.0,108470.0,0.00214306]
[1756512477504,0.52436578,108480.0,108470.0,0.09471938]
[1756512477650,0.52436578,108480.0,108470.0,0.28140693]
[1756512477854,0.52436578,108480.0,108470.0,0.27810215]
[1756512479028,0.95467615,108480.0,108470.0,0.27810215]
[1756512480306,0.95467615,108480.0,108470.0,0.27910215]
[1756512480554,0.95467615,108480.0,108470.0,0.28010215]
[1756512480776,0.61467615,108480.0,108470.0,0.34207624]
[1756512480952,0.61467615,108480.0,108470.0,0.15769347]
[1756512482836,0.95467615,108480.0,108470.0,0.15769347]
[1756512484663,0.95672615,108480.0,108470.0,0.15769347]
[1756512485532,1.54528652,108480.0,108470.0,0.00214306]
[1756512495570,1.54227652,108480.0,108470.0,0.00214306]
[1756512495798,1.38703652,108480.0,108470.0,0.00430306]
[1756512495999,1.54528652,108480.0,108470.0,0.00214306]
[1756512498048,1.39004652,108480.0,108470.0,0.00214306]
[1756512498386,1.54227652,108480.0,108470.0,0.00214306]
[1756512499045,0.52436578,108480.0,108470.0,0.00742306]
[1756512499277,0.52436578,108480.0,108470.0,0.28010215]
[1756512499499,0.52436578,108480.0,108470.0,0.36839847]
[1756512499729,0.52436578,108480.0,108470.0,0.1840157]
[1756512499964,0.95669615,108480.0,108470.0,0.09571938]
[1756512504202,0.95467615,108480.0,108470.0,0.09571938]
[1756512504426,0.77031037,108480.0,108470.0,0.28240693]
[1756512504628,0.77031037,108480.0,108470.0,0.28010215]
[1756512505379,0.34,108480.0,108470.0,0.28010215]
[1756512505614,0.52434878,108490.0,108480.0,0.18436578]
[1756512505834,0.52434878,108490.0,108480.0,0.09357632]
[1756512506286,0.95465915,108490.0,108480.0,0.09357632]
[1756512506504,0.95465915,108490.0,108480.0,0.2779421]
[1756512506936,0.95565915,108490.0,108480.0,0.2779421]
[1756512507443,0.95565915,108490.0,108480.0,0.28681586]
[1756512508120,0.95565915,108490.0,108480.0,0.10245008]
[1756512508328,0.95565915,108490.0,108480.0,0.24881632]
[1756512509842,0.341,108490.0,108480.0,0.45412092]
[1756512510054,0.341,108490.0,108480.0,0.29888092]
[1756512510283,0.341,108490.0,108480.0,0.45412092]
[1756512510725,0.34,108490.0,108480.0,0.45412092]
[1756512510968,0.34,108490.0,108480.0,0.38717724]
[1756512511179,0.341,108490.0,108480.0,0.54241724]
[1756512511392,0.52434878,108490.0,108480.0,0.54241724]
[1756512511927,0.52434878,108490.0,108480.0,0.54441724]
[1756512512819,0.52434878,108490.0,108480.0,0.54641724]
[1756512512998,0.52434878,108490.0,108480.0,0.43687356]
[1756512513315,0.52636878,108490.0,108480.0,0.28163356]
[1756512513531,0.95667915,108490.0,108480.0,0.43687356]
[1756512513683,0.95465915,108490.0,108480.0,0.43687356]
[1756512514300,0.77031037,108490.0,108480.0,0.43687356]
[1756512514538,0.34,108490.0,108480.0,0.43687356]
[1756512514733,0.77031037,108490.0,108480.0,0.43687356]
[1756512514936,0.77031037,108490.0,108480.0,0.45781238]
[1756512515351,0.77031037,108490.0,108480.0,0.46093238]
[1756512515548,0.34,108490.0,108480.0,0.46093238]
[1756512515790,0.77031037,108490.0,108480.0,0.46093238]
[1756512516199,0.52434878,108490.0,108480.0,0.29976092]
[1756512516436,0.52434878,108490.0,108480.0,0.45500092]
[1756512516654,0.95465915,108490.0,108480.0,0.45500092]
[1756512518029,0.34,108490.0,108480.0,0.45500092]
[1756512518203,0.77031037,108490.0,108480.0,0.45500092]
[1756512520903,0.77542037,108490.0,108480.0,0.45500092]
[1756512521122,0.95976915,108490.0,108480.0,0.45496092]
[1756512521328,0.95976915,108490.0,108480.0,0.29976092]
[1756512521546,1.04806547,108490.0,108480.0,0.24749632]
[1756512521769,0.7729551,108490.0,108480.0,0.004]
[1756512522006,1.20326547,108490.0,108480.0,0.1592]
[1756512522412,1.20326547,108490.0,108480.0,0.1572]
[1756512522616,1.11496915,108490.0,108480.0,0.1552]
[1756512522816,1.11496915,108490.0,108480.0,0.1572]
[1756512526413,0.52945878,108490.0,108480.0,0.1572]
[1756512526720,0.95976915,108490.0,108480.0,0.1572]
[1756512528946,1.11496915,108490.0,108480.0,0.1572]
[1756512530925,0.95976915,108490.0,108480.0,0.34156578]
[1756512531140,0.95976915,108490.0,108480.0,0.1572]
[1756512532733,0.95976915,108490.0,108480.0,0.1552]
[1756512533562,0.95976915,108490.0,108480.0,0.1572]
[1756512534033,0.95976915,108490.0,108480.0,0.1582]
[1756512534229,0.34,108490.0,108480.0,0.4358521]
[1756512534715,0.34,108490.0,108480.0,0.4348521]
[1756512534833,0.34,108490.0,108480.0,0.4358521]
[1756512535279,0.52434878,108490.0,108480.0,0.4358521]
[1756512535724,0.95465915,108490.0,108480.0,0.4328421]
[1756512536143,0.52434878,108490.0,108480.0,0.4328421]
[1756512536299,0.95465915,108490.0,108480.0,0.4328421]
[1756512536501,1.04810547,108490.0,108480.0,0.09129632]
[1756512537003,1.04810547,108490.0,108480.0,0.24649632]
[1756512537758,0.95980915,108490.0,108480.0,0.4308621]
[1756512538487,0.95980915,108490.0,108480.0,0.24649632]
[1756512538623,0.52949878,108490.0,108480.0,0.24649632]
[1756512538825,0.95980915,108490.0,108480.0,0.24649632]
[1756512539249,0.95980915,108490.0,108480.0,0.4308621]
[1756512539662,0.34208,108490.0,108480.0,0.4328421]
[1756512539952,0.95673915,108490.0,108480.0,0.09129632]
[1756512540159,0.95980915,108490.0,108480.0,0.24649632]
[1756512541957,1.11500915,108490.0,108480.0,0.1582]
[1756512542513,1.20330547,108490.0,108480.0,0.003]
[1756512542715,1.20330547,108490.0,108480.0,0.001]
[1756512543357,0.18436578,108480.0,108470.0,0.15534306]
[1756512543553,0.61675615,108480.0,108470.0,0.15534306]
[1756512543801,0.61982615,108480.0,108470.0,0.15534306]
[1756512544540,0.61982615,108480.0,108470.0,0.15734306]
[1756512545189,0.61982615,108480.0,108470.0,0.15934306]
[1756512545693,0.61982615,108480.0,108470.0,0.34372583]
[1756512546512,0.61982615,108480.0,108470.0,0.33972583]
[1756512546724,0.61976115,108480.0,108470.0,0.34172583]
[1756512546870,0.61976115,108480.0,108470.0,0.34372583]
[1756512547487,0.43546037,108480.0,108470.0,0.34570583]
[1756512547725,0.61982615,108480.0,108470.0,0.34570583]
[1756512547926,0.61982615,108480.0,108470.0,0.34372583]
[1756512548210,0.18644578,108480.0,108470.0,0.40460611]
[1756512548350,0.00208,108480.0,108470.0,0.40460611]
[1756512548557,0.43239037,108480.0,108470.0,0.40460611]
[1756512549356,0.43239037,108480.0,108470.0,0.40260611]
[1756512549531,0.43239037,108480.0,108470.0,0.40060611]
[1756512549881,0.95773315,108490.0,108470.0,0.49190243]
[1756512550054,0.34,108490.0,108480.0,0.18667035]
[1756512550329,0.34,108490.0,108480.0,0.2746421]
[1756512550542,0.34,108490.0,108480.0,0.2776521]
[1756512551282,0.34,108490.0,108480.0,0.2786521]
[1756512551520,0.34,108490.0,108480.0,0.2806521]
[1756512555504,0.67367761,108510.0,108490.0,0.18434878]
[1756512555704,0.67367761,108510.0,108490.0,0.47639907]
[1756512555705,0.00307,108500.0,108490.0,0.47639907]
[1756512556054,0.77546037,108500.0,108490.0,0.4297851]
[1756512556479,0.43546037,108500.0,108490.0,0.4297851]
[1756512556647,0.77546037,108500.0,108490.0,0.2746251]
[1756512556885,0.77646037,108500.0,108490.0,0.4297851]
[1756512557662,0.341,108500.0,108490.0,0.4297851]
[1756512557866,0.341,108500.0,108490.0,0.52109142]
[1756512558074,0.001,108500.0,108490.0,0.52109142]
[1756512558293,0.001,108500.0,108490.0,0.51808142]
[1756512558816,0.001,108500.0,108490.0,0.51908142]
[1756512559622,0.001,108500.0,108490.0,0.36392142]
[1756512559940,0.001,108500.0,108490.0,0.51908142]
[1756512561458,0.43131037,108500.0,108490.0,0.51908142]
[1756512561659,0.43331037,108500.0,108490.0,0.51908142]
[1756512562855,0.43654037,108500.0,108490.0,0.51908142]
[1756512563065,0.003,108500.0,108490.0,0.51908142]
[1756512563230,0.43331037,108500.0,108490.0,0.51908142]
[1756512564474,0.001,108500.0,108490.0,0.52221142]
[1756512564675,0.001,108500.0,108490.0,0.54315024]
[1756512565373,0.001,108500.0,108490.0,0.38799024]
[1756512565641,0.001,108500.0,108490.0,0.54315024]
[1756512566821,0.001,108500.0,108490.0,0.42877504]
[1756512567023,0.001,108500.0,108490.0,0.58080504]
[1756512568612,0.001,108500.0,108490.0,0.42877504]
[1756512568809,0.001,108500.0,108490.0,0.58393504]
[1756512569223,0.001,108500.0,108490.0,0.49965504]
[1756512569423,0.001,108500.0,108490.0,0.65481504]
[1756512569838,0.001,108500.0,108490.0,0.65168504]
[1756512570254,0.001,108500.0,108490.0,0.56338872]
[1756512570813,0.43131037,108500.0,108490.0,0.56338872]
[1756512571312,0.001,108500.0,108490.0,0.56338872]
[1756512572013,0.003,108500.0,108490.0,0.56338872]
[1756512573162,0.003,108500.0,108490.0,0.40822872]
[1756512573359,0.003,108500.0,108490.0,0.57839886]
[1756512576025,0.001,108500.0,108490.0,0.57839886]
[1756512577402,0.001,108500.0,108490.0,0.57835886]
[1756512578452,0.43131037,108500.0,108490.0,0.57835886]
[1756512579311,0.001,108500.0,108490.0,0.57835886]
[1756512579882,0.001,108500.0,108490.0,0.58148886]
[1756512580083,0.003,108500.0,108490.0,0.42323886]
[1756512580296,0.00623,108500.0,108490.0,0.57835886]
[1756512580490,0.003,108500.0,108490.0,0.57835886]
[1756512581953,0.18733179,108500.0,108490.0,0.42323886]
[1756512582153,0.19056179,108500.0,108490.0,0.57835886]
[1756512582791,0.62087216,108500.0,108490.0,0.42323886]
[1756512582988,0.62087216,108500.0,108490.0,0.57835886]
[1756512584027,0.62087216,108500.0,108490.0,0.4695499]
[1756512584575,0.62087216,108500.0,108490.0,0.28520112]
[1756512584778,0.62087216,108500.0,108490.0,0.08929632]
[1756512584978,0.62087216,108500.0,108490.0,0.24441632]
[1756512585687,0.62087216,108500.0,108490.0,0.15612]
[1756512585688,0.96087216,108500.0,108490.0,0.15612]
[1756512585919,1.11599216,108500.0,108490.0,0.15612]
[1756512586122,1.11599216,108500.0,108490.0,0.001]
[1756512589778,0.96087216,108500.0,108490.0,0.001]
[1756512589956,1.11599216,108500.0,108490.0,0.001]
[1756512593302,0.53056179,108500.0,108490.0,0.001]
[1756512593474,0.68568179,108500.0,108490.0,0.001]
[1756512593676,1.11599216,108500.0,108490.0,0.001]
[1756512594156,0.68568179,108500.0,108490.0,0.001]
[1756512594405,1.11599216,108500.0,108490.0,0.001]
[1756512594831,0.96087216,108500.0,108490.0,0.001]
[1756512595043,1.11599216,108500.0,108490.0,0.001]
[1756512595699,0.68568179,108500.0,108490.0,0.001]
[1756512595912,1.11599216,108500.0,108490.0,0.001]
[1756512596328,0.96087216,108500.0,108490.0,0.001]
[1756512597126,0.96087216,108500.0,108490.0,0.18534878]
[1756512597361,0.96087216,108500.0,108490.0,0.001]
[1756512604716,1.11599216,108500.0,108490.0,0.001]
[1756512605056,1.11330313,108500.0,108490.0,0.001]
[1756512606526,1.11326313,108500.0,108490.0,0.001]
[1756512607138,1.11326313,108500.0,108490.0,0.18534878]
[1756512607737,1.11326313,108500.0,108490.0,0.001]
[1756512609151,0.95818313,108500.0,108490.0,0.001]
[1756512611170,1.11326313,108500.0,108490.0,0.001]
[1756512617490,1.5433777,108500.0,108490.0,0.001]
[1756512619106,1.3882977,108500.0,108490.0,0.001]
[1756512619257,1.5433777,108500.0,108490.0,0.001]
[1756512619459,0.68295276,108500.0,108490.0,0.001]
[1756512619672,1.5433777,108500.0,108490.0,0.001]
[1756512622778,1.3882977,108500.0,108490.0,0.001]
[1756512622990,1.5433777,108500.0,108490.0,0.001]
[1756512627202,1.30665303,108500.0,108490.0,0.001]
[1756512627340,1.49303482,108500.0,108490.0,0.001]
[1756512628226,2.01154361,108500.0,108490.0,0.001]
[1756512628429,2.11998197,108500.0,108490.0,0.001]
[1756512628643,2.14769597,108500.0,108490.0,0.001]
[1756512629134,2.14770095,108500.0,108490.0,0.001]
[1756512629344,2.14976095,108500.0,108490.0,0.001]
[1756512629553,2.13534463,108500.0,108490.0,0.001]
[1756512629998,0.18436578,108480.0,108470.0,0.00014306]
[1756512630209,1.19999072,108480.0,108470.0,0.00014306]
[1756512630408,1.20204072,108480.0,108470.0,0.00014306]
[1756512631380,1.20204072,108480.0,108470.0,0.00114306]
[1756512633817,1.04684072,108480.0,108470.0,0.00114306]
[1756512634020,1.20196072,108480.0,108470.0,0.00114306]
[1756512635904,1.04684072,108480.0,108470.0,0.00114306]
[1756512640493,1.20398072,108480.0,108470.0,0.00114306]
[1756512640899,1.20192072,108480.0,108470.0,0.00114306]
[1756512644424,0.18641578,108480.0,108470.0,0.00114306]
[1756512644630,1.20192072,108480.0,108470.0,0.00114306]
[1756512649890,0.18436578,108480.0,108470.0,0.00632306]
[1756512650105,0.18436578,108480.0,108470.0,0.19070583]
[1756512650352,1.04479072,108480.0,108470.0,0.19070583]
[1756512650557,0.18436578,108480.0,108470.0,0.00632306]
[1756512650759,1.04479072,108480.0,108470.0,0.00632306]
[1756512651729,1.04589072,108480.0,108470.0,0.00327306]
[1756512653507,1.20097072,108480.0,108470.0,0.00114306]
[1756512654791,1.54397072,108480.0,108470.0,0.00114306]
[1756512654990,2.00189819,108480.0,108470.0,0.00114306]
[1756512655243,1.77560893,108480.0,108470.0,0.00114306]
[1756512655457,1.95997471,108480.0,108470.0,0.00114306]
[1756512656595,0.55618078,108480.0,108470.0,0.00114306]
[1756512656945,1.57168572,108480.0,108470.0,0.00114306]
[1756512657703,2.00189819,108480.0,108470.0,0.00114306]
[1756512658772,1.57168572,108480.0,108470.0,0.00114306]
[1756512659941,1.65998204,108480.0,108470.0,0.00114306]
[1756512661809,1.58893411,108480.0,108470.0,0.00114306]
[1756512662947,1.43385411,108480.0,108470.0,0.00114306]
[1756512663145,1.58893411,108480.0,108470.0,0.00114306]
[1756512663353,1.57168572,108480.0,108470.0,0.00114306]
[1756512664159,1.41660572,108480.0,108470.0,0.00114306]
[1756512664357,1.57168572,108480.0,108470.0,0.00114306]
[1756512664556,1.56868572,108480.0,108470.0,0.00114306]
[1756512667070,1.65698204,108480.0,108470.0,0.00114306]
[1756512667277,1.41360572,108480.0,108470.0,0.00114306]
[1756512667475,0.55208078,108480.0,108470.0,0.00632306]
[1756512667806,1.56758572,108480.0,108470.0,0.00632306]
[1756512668138,1.41250572,108480.0,108470.0,0.00632306]